bitfinex-derivatives/quotes_SOLF0:USTF0_20251024
["timestamp","ask_amount","ask_price","bid_price","bid_amount"]
[1761343364806,1.50183453,193.66,193.6,2.86]
[1761343365007,1.50183453,193.64,193.6,2.86]
[1761343365215,4.46783574,193.63,193.6,2.86]
[1761343365409,4.46783574,193.62,193.6,2.86]
[1761343365609,4.46783574,193.61,193.6,2.86]
[1761343365809,4.46783574,193.63,193.6,2.86]
[1761343366011,4.46783574,193.62,193.6,2.86]
[1761343366219,4.46783574,193.61,193.6,2.86]
[1761343366518,4.46783574,193.63,193.6,2.86]
[1761343366717,4.46783574,193.62,193.6,2.86]
[1761343366917,4.46783574,193.61,193.6,2.86]
[1761343367109,4.46783574,193.63,193.6,2.86]
[1761343367305,4.46783574,193.62,193.6,2.86]
[1761343367611,4.46783574,193.61,193.56,2.86]
[1761343367918,4.46783574,193.6,193.56,2.86]
[1761343368217,4.46783574,193.59,193.56,2.86]
[1761343368419,4.46783574,193.58,193.56,2.86]
[1761343368615,4.46783574,193.61,193.56,2.86]
[1761343368805,4.46783574,193.6,193.56,2.86]
[1761343369117,4.46783574,193.59,193.56,2.86]
[1761343369321,4.46783574,193.58,193.56,2.86]
[1761343369616,4.46783574,193.57,193.56,2.86]
[1761343369807,4.46783574,193.61,193.56,2.86]
[1761343370011,4.46783574,193.6,193.56,2.86]
[1761343370216,4.46783574,193.59,193.56,2.86]
[1761343370414,4.46783574,193.58,193.56,2.86]
[1761343370611,4.46783574,193.61,193.56,2.86]
[1761343370806,4.46783574,193.6,193.56,2.86]
[1761343371015,4.46783574,193.59,193.56,2.86]
[1761343371217,4.46783574,193.58,193.56,2.86]
[1761343371417,4.46783574,193.61,193.56,2.86]
[1761343371717,4.46783574,193.6,193.56,2.86]
[1761343371912,4.46783574,193.59,193.56,2.86]
[1761343372212,4.46783574,193.58,193.56,2.86]
[1761343372409,4.46783574,193.57,193.52,2.86]
[1761343372614,4.46783574,193.56,193.52,2.86]
[1761343372915,4.46783574,193.55,193.52,2.86]
[1761343373115,2.34924418,193.61,193.52,2.86]
[1761343373316,4.57674957,193.6,193.52,2.86]
[1761343373513,4.57674957,193.59,193.52,2.86]
[1761343373714,4.57674957,193.58,193.52,2.86]
[1761343373918,4.57674957,193.57,193.52,2.86]
[1761343374118,4.57674957,193.56,193.52,2.86]
[1761343374312,4.57674957,193.55,193.52,2.86]
[1761343374513,2.34924418,193.61,193.52,2.86]
[1761343374719,4.57785392,193.6,193.52,2.86]
[1761343374923,4.57785392,193.59,193.52,2.86]
[1761343375121,4.57785392,193.58,193.52,2.86]
[1761343375318,4.57785392,193.57,193.52,2.86]
[1761343375522,4.57785392,193.56,193.52,2.86]
[1761343375716,4.57785392,193.55,193.52,2.86]
[1761343375916,2.34924418,193.61,193.52,2.86]
[1761343376121,4.57671593,193.6,193.52,2.86]
[1761343376322,4.57671593,193.59,193.52,2.86]
[1761343376521,4.57671593,193.58,193.52,2.86]
[1761343376721,4.57671593,193.57,193.52,2.86]
[1761343376925,4.57671593,193.56,193.52,2.86]
[1761343377125,4.57671593,193.55,193.52,2.86]
[1761343377319,2.34924418,193.61,193.52,2.86]
[1761343377624,4.57649436,193.6,193.52,2.86]
[1761343377823,4.57649436,193.59,193.52,2.86]
[1761343378022,4.57649436,193.58,193.52,2.86]
[1761343378223,4.57649436,193.57,193.52,2.86]
[1761343378424,4.57649436,193.56,193.52,2.86]
[1761343378622,4.57649436,193.55,193.52,2.86]
[1761343378823,2.34924418,193.61,193.52,2.86]
[1761343379025,4.57623084,193.6,193.52,2.86]
[1761343379218,4.57623084,193.59,193.52,2.86]
[1761343379419,4.57623084,193.58,193.52,2.86]
[1761343379621,4.57623084,193.57,193.52,2.86]
[1761343379927,4.57623084,193.56,193.52,2.86]
[1761343380123,4.57623084,193.55,193.52,2.86]
[1761343380318,4.57623084,193.54,193.52,2.86]
[1761343380520,4.57623084,193.6,193.52,2.86]
[1761343380727,4.57623084,193.59,193.52,2.86]
[1761343380925,4.57623084,193.58,193.52,2.86]
[1761343381124,4.57623084,193.57,193.52,2.86]
[1761343381321,4.57623084,193.56,193.52,2.86]
[1761343381521,4.57623084,193.55,193.52,2.86]
[1761343381723,2.34924418,193.61,193.52,2.86]
[1761343381920,4.57686983,193.6,193.52,2.86]
[1761343382120,4.57686983,193.59,193.52,2.86]
[1761343382320,2.34924418,193.61,193.52,2.86]
[1761343382321,4.57686983,193.58,193.52,2.86]
[1761343382516,4.57686983,193.57,193.52,2.86]
[1761343382721,4.57686983,193.56,193.52,2.86]
[1761343382924,4.57686983,193.55,193.52,2.86]
[1761343383126,4.57686983,193.6,193.52,2.86]
[1761343383323,4.57686983,193.59,193.52,2.86]
[1761343383531,4.57686983,193.58,193.52,2.86]
[1761343383828,4.57686983,193.57,193.52,2.86]
[1761343384028,4.57686983,193.56,193.52,2.86]
[1761343384230,4.57686983,193.55,193.52,2.86]
[1761343384430,4.57686983,193.61,193.52,2.86]
[1761343384632,4.57686983,193.6,193.52,2.86]
[1761343384830,4.57686983,193.59,193.52,2.86]
[1761343385038,4.57686983,193.58,193.52,2.86]
[1761343385231,4.57686983,193.57,193.52,2.86]
[1761343385428,4.57686983,193.56,193.52,2.86]
[1761343385733,4.57686983,193.55,193.52,2.86]
[1761343385926,4.57686983,193.54,193.52,2.86]
[1761343386127,4.57686983,193.6,193.52,2.86]
[1761343386433,4.57686983,193.59,193.52,2.86]
[1761343386632,4.57686983,193.58,193.52,2.86]
[1761343386827,4.57686983,193.57,193.52,2.86]
[1761343387028,4.57686983,193.56,193.52,2.86]
[1761343387229,4.57686983,193.55,193.52,2.86]
[1761343387429,4.57686983,193.54,193.52,2.86]
[1761343387633,4.57686983,193.53,193.52,2.86]
[1761343387833,4.57686983,193.59,193.52,2.86]
[1761343388033,4.57686983,193.58,193.52,2.86]
[1761343388335,4.57686983,193.57,193.52,2.86]
[1761343388531,4.57686983,193.56,193.52,2.86]
[1761343388733,4.57686983,193.55,193.52,2.86]
[1761343388932,4.57686983,193.54,193.52,2.86]
[1761343389134,4.57686983,193.6,193.52,2.86]
[1761343389335,4.57686983,193.59,193.52,2.86]
[1761343389532,4.57686983,193.58,193.52,2.86]
[1761343389836,4.57686983,193.57,193.52,2.86]
[1761343390035,4.57686983,193.56,193.52,2.86]
[1761343390335,4.57686983,193.55,193.52,2.86]
[1761343390534,4.57686983,193.54,193.52,2.86]
[1761343390737,4.57686983,193.6,193.52,2.86]
[1761343390936,4.57686983,193.59,193.52,2.86]
[1761343391138,2.34924418,193.62,193.52,2.86]
[1761343391139,4.57686983,193.58,193.52,2.86]
[1761343391328,4.57686983,193.57,193.52,2.86]
[1761343391533,4.57686983,193.56,193.52,2.86]
[1761343391734,4.57686983,193.55,193.52,2.86]
[1761343391936,4.57686983,193.54,193.52,2.86]
[1761343392136,4.57686983,193.59,193.52,2.86]
[1761343392337,4.57686983,193.58,193.52,2.86]
[1761343392539,4.57686983,193.57,193.52,2.86]
[1761343392727,4.57686983,193.56,193.52,2.86]
[1761343392933,4.57686983,193.55,193.46,2.86]
[1761343393236,4.57686983,193.54,193.46,2.86]
[1761343393435,4.57686983,193.53,193.46,2.86]
[1761343393632,4.57686983,193.52,193.46,2.86]
[1761343393830,4.57686983,193.51,193.46,2.86]
[1761343394029,4.57686983,193.5,193.46,2.86]
[1761343394230,4.57686983,193.55,193.46,2.86]
[1761343394537,4.57686983,193.54,193.46,2.86]
[1761343394734,4.57686983,193.53,193.46,2.86]
[1761343394935,4.57686983,193.52,193.46,2.86]
[1761343395136,4.57686983,193.51,193.46,2.86]
[1761343395338,4.57686983,193.5,193.46,2.86]
[1761343395533,4.57686983,193.49,193.46,2.86]
[1761343395736,4.57686983,193.48,193.46,2.86]
[1761343396038,4.57686983,193.52,193.46,2.86]
[1761343396233,4.57686983,193.51,193.46,2.86]
[1761343396433,4.57686983,193.5,193.46,2.86]
[1761343396635,4.57686983,193.49,193.46,2.86]
[1761343396834,4.57686983,193.52,193.46,2.86]
[1761343397029,4.57686983,193.51,193.46,2.86]
[1761343397239,4.57686983,193.5,193.46,2.86]
[1761343397439,4.57686983,193.52,193.46,2.86]
[1761343397738,4.57686983,193.51,193.46,2.86]
[1761343397933,4.57686983,193.5,193.46,2.86]
[1761343398137,4.53309009,193.52,193.46,2.86]
[1761343398339,4.53309009,193.51,193.46,2.86]
[1761343398537,4.53309009,193.5,193.46,2.86]
[1761343398837,4.53309009,193.52,193.46,2.86]
[1761343399037,2.34924418,193.5,193.4,2.86]
[1761343399234,2.34924418,193.5,193.36,2.34924418]
[1761343399235,2.34924418,193.47,193.36,2.86]
[1761343399537,2.34924418,193.41,193.31,2.86]
[1761343399743,4.53309009,193.4,193.31,2.86]
[1761343400044,6.44100558,193.45,193.31,2.86]
[1761343400045,4.53309009,193.43,193.32,2.86]
[1761343400228,4.53309009,193.45,193.32,2.86]
[1761343400431,4.53309009,193.47,193.37,2.86]
[1761343400633,4.53309009,193.49,193.37,2.86]
[1761343400842,4.53309009,193.48,193.37,2.86]
[1761343401033,4.53309009,193.49,193.37,2.86]
[1761343402341,6.88233427,193.5,193.37,2.86]
[1761343402835,2.34924418,193.47,193.37,2.86]
[1761343403042,4.53309009,193.48,193.37,2.86]
[1761343403336,4.53309009,193.48,193.4,2.86]
[1761343403636,2.34924418,193.51,193.4,2.86]
[1761343404140,2.34924418,193.48,193.4,2.86]
[1761343405129,2.34924418,193.44,193.36,2.86]
[1761343406041,6.44100558,193.53,193.36,2.86]
[1761343406042,2.34924418,193.46,193.36,2.86]
[1761343407139,4.53309009,193.48,193.36,2.86]
[1761343407438,2.34924418,193.46,193.36,2.86]
[1761343411436,2.34924418,193.43,193.32,2.86]
[1761343416344,2.34924418,193.4,193.32,2.86]
[1761343416740,51.94924418,193.43,193.32,2.86]
[1761343417349,2.34924418,193.43,193.32,2.86]
[1761343417945,17.34924418,193.46,193.32,2.86]
[1761343418146,4.39193829,193.45,193.32,2.86]
[1761343418743,2.34924418,193.43,193.33,2.84]
[1761343419047,2.34924418,193.39,193.28,85.23688282]
[1761343419252,2.34924418,193.39,193.29,2.84]
[1761343419453,4.39106957,193.43,193.29,2.84]
[1761343419953,17.34924418,193.44,193.32,2.84]
[1761343420652,2.34924418,193.47,193.32,2.84]
[1761343420947,6.73999307,193.47,193.32,2.84]
[1761343421150,6.73999307,193.47,193.34,2.84]
[1761343422045,2.34924418,193.38,193.3,2.84]
[1761343425249,2.34924418,193.32,193.19,2.84]
[1761343426441,2.34924418,193.29,193.19,2.84]
[1761343427354,4.39074889,193.36,193.19,2.84]
[1761343427553,2.34924418,193.29,193.19,2.84]
[1761343428662,4.39074889,193.33,193.19,2.84]
[1761343428863,15.0,193.37,193.19,2.84]
[1761343428864,2.34924418,193.31,193.19,2.84]
[1761343429760,2.34924418,193.34,193.21,2.84]
[1761343433062,2.34924418,193.31,193.21,2.84]
[1761343434167,2.34924418,193.28,193.21,2.84]
[1761343434759,1.50860607,193.26,193.21,2.84]
[1761343435261,1.50860607,193.24,193.21,2.84]
[1761343438062,4.39074889,193.34,193.21,2.84]
[1761343438364,1.50860607,193.27,193.21,2.84]
[1761343441471,1.50860607,193.29,193.21,2.84]
[1761343442464,1.50860607,193.27,193.21,2.84]
[1761343442661,1.50860607,193.31,193.22,1.50860607]
[1761343442865,1.50860607,193.31,193.23,2.77]
[1761343444164,1.50860607,193.29,193.23,2.77]
[1761343446472,1.50860607,193.27,193.18,2.77]
[1761343446665,1.50860607,193.27,193.19,2.77]
[1761343447065,1.50860607,193.27,193.19,4.27860607]
[1761343447377,1.50860607,193.31,193.22,2.77]
[1761343447676,1.50860607,193.31,193.24,2.85]
[1761343448977,4.39074889,193.32,193.24,2.85]
[1761343451181,4.77708749,193.4,193.25,1.50860607]
[1761343451475,4.77708749,193.4,193.28,2.85]
[1761343451476,1.50860607,193.37,193.28,2.85]
[1761343452173,1.50860607,193.35,193.28,2.85]
[1761343454778,1.50860607,193.33,193.24,2.85]
[1761343456276,1.50860607,193.33,193.26,2.85]
[1761343456573,1.50860607,193.35,193.27,1.50860607]
[1761343456776,1.50860607,193.35,193.28,2.85]
[1761343458884,1.50860607,193.36,193.28,2.85]
[1761343460482,4.39401583,193.38,193.29,1.50860607]
[1761343460680,4.39401583,193.38,193.19,6.44054361]
[1761343460681,4.39401583,193.38,193.31,1.50860607]
[1761343460886,4.39401583,193.38,193.32,2.85]
[1761343461281,1.50860607,193.4,193.32,2.85]
[1761343463489,5.9026219,193.4,193.32,2.85]
[1761343463679,1.50860607,193.4,193.32,2.85]
[1761343463985,5.9026219,193.4,193.32,2.85]
[1761343464188,1.50860607,193.4,193.32,2.85]
[1761343464394,5.9026219,193.4,193.32,2.85]
[1761343464687,1.50860607,193.4,193.32,2.85]
[1761343464886,5.9026219,193.4,193.32,2.85]
[1761343465077,1.50860607,193.4,193.32,2.85]
[1761343465279,4.39401583,193.39,193.32,2.85]
[1761343466292,4.39401583,193.38,193.32,2.85]
[1761343466589,4.39401583,193.39,193.32,2.85]
[1761343466787,4.39401583,193.38,193.32,2.85]
[1761343466995,4.39401583,193.39,193.32,2.85]
[1761343467289,4.39401583,193.38,193.32,2.85]
[1761343467492,4.39401583,193.39,193.32,2.85]
[1761343467693,4.39401583,193.38,193.32,2.85]
[1761343467887,4.39401583,193.39,193.32,2.85]
[1761343468182,4.39401583,193.38,193.32,2.85]
[1761343468383,4.39401583,193.39,193.32,2.85]
[1761343468590,4.39401583,193.38,193.32,2.85]
[1761343468889,4.39401583,193.39,193.32,2.85]
[1761343469189,4.39401583,193.38,193.32,2.85]
[1761343469391,4.39401583,193.39,193.32,2.85]
[1761343469588,4.39401583,193.38,193.32,2.85]
[1761343469788,4.39401583,193.39,193.32,2.85]
[1761343470095,4.39401583,193.38,193.32,2.85]
[1761343470294,4.39401583,193.39,193.32,2.85]
[1761343470496,4.39401583,193.38,193.32,2.85]
[1761343470793,4.39401583,193.39,193.32,2.85]
[1761343470993,4.39401583,193.38,193.32,2.85]
[1761343471191,4.39401583,193.39,193.32,2.85]
[1761343473195,4.39401583,193.39,193.33,4.6545]
[1761343473392,4.39401583,193.39,193.34,2.85]
[1761343476099,1.50860607,193.4,193.34,2.85]
[1761343476590,5.9026219,193.4,193.34,2.85]
[1761343476792,1.50860607,193.4,193.34,2.85]
[1761343477193,5.9026219,193.4,193.34,2.85]
[1761343477500,1.50860607,193.4,193.34,2.85]
[1761343477888,5.9026219,193.4,193.34,2.85]
[1761343478093,1.50860607,193.4,193.34,2.85]
[1761343478289,1.50860607,193.38,193.34,2.85]
[1761343478496,1.50860607,193.36,193.3,4.6551]
[1761343478696,1.50860607,193.36,193.3,7.2451]
[1761343479002,1.50860607,193.34,193.31,2.59]
[1761343480601,1.50860607,193.36,193.31,2.59]
[1761343484190,1.50860607,193.38,193.3,2.59]
[1761343485092,1.50860607,193.38,193.33,2.59]
[1761343487696,1.50860607,193.4,193.34,2.59]
[1761343489001,1.50860607,193.4,193.34,4.6541]
[1761343489199,1.50860607,193.4,193.35,2.59]
[1761343490203,1.50860607,193.38,193.34,4.6541]
[1761343490409,1.50860607,193.38,193.33,2.59]
[1761343491107,1.50860607,193.38,193.34,2.59]
[1761343492207,1.50860607,193.4,193.34,2.59]
[1761343492395,4.39401583,193.39,193.34,2.59]
[1761343492701,4.39401583,193.39,193.33,4.6543]
[1761343492702,4.39401583,193.39,193.35,2.59]
[1761343492908,4.39401583,193.41,193.35,2.59]
[1761343493099,4.39401583,193.4,193.35,2.59]
[1761343493299,4.39401583,193.39,193.35,2.59]
[1761343493616,4.39401583,193.41,193.37,2.59]
[1761343493798,1.50860607,193.44,193.37,2.59]
[1761343494404,4.42868179,193.43,193.37,2.59]
[1761343494701,2.35286469,193.45,193.37,2.59]
[1761343494897,4.42866708,193.44,193.37,2.59]
[1761343495102,4.42866708,193.43,193.37,2.59]
[1761343495304,4.42866708,193.42,193.37,2.59]
[1761343495505,4.42866708,193.44,193.37,2.59]
[1761343495803,4.42866708,193.43,193.37,2.59]
[1761343496010,4.42866708,193.42,193.37,2.59]
[1761343496213,4.42866708,193.44,193.37,2.59]
[1761343496511,4.42866708,193.43,193.37,2.59]
[1761343496710,4.42866708,193.42,193.37,2.59]
[1761343497012,4.42866708,193.41,193.37,2.59]
[1761343497199,4.42866708,193.44,193.37,2.59]
[1761343497403,4.42866708,193.43,193.37,2.59]
[1761343497610,4.42866708,193.42,193.37,2.59]
[1761343497804,4.42866708,193.44,193.37,2.59]
[1761343498000,4.42866708,193.43,193.37,2.59]
[1761343498201,4.42866708,193.42,193.32,2.35286469]
[1761343498407,4.42866708,193.46,193.38,2.35286469]
[1761343498608,4.42866708,193.47,193.39,2.74]
[1761343498813,4.42866708,193.52,193.39,2.74]
[1761343499006,4.42866708,193.51,193.39,2.74]
[1761343499206,4.42866708,193.5,193.39,2.74]
[1761343499402,4.42866708,193.49,193.39,2.74]
[1761343499603,4.42866708,193.52,193.43,2.74]
[1761343499812,4.42866708,193.51,193.43,2.74]
[1761343500011,4.42866708,193.5,193.43,2.74]
[1761343500212,4.42866708,193.49,193.43,2.74]
[1761343500413,4.42866708,193.52,193.43,2.74]
[1761343500608,4.42866708,193.51,193.43,2.74]
[1761343500813,4.42866708,193.5,193.43,2.74]
[1761343501008,4.42866708,193.49,193.43,4.6519]
[1761343501214,4.42866708,193.48,193.44,2.74]
[1761343501412,4.42866708,193.52,193.44,2.74]
[1761343501717,4.42866708,193.51,193.44,2.74]
[1761343501912,4.42866708,193.5,193.44,2.74]
[1761343502111,4.42866708,193.49,193.44,2.74]
[1761343502313,4.42866708,193.52,193.44,2.74]
[1761343502514,4.42866708,193.51,193.44,2.74]
[1761343502814,4.42866708,193.5,193.44,2.74]
[1761343503113,4.42866708,193.53,193.44,2.74]
[1761343503315,4.42866708,193.52,193.44,2.74]
[1761343503517,4.42866708,193.51,193.44,2.74]
[1761343503715,4.42866708,193.53,193.44,2.74]
[1761343503915,4.42866708,193.52,193.44,2.74]
[1761343504116,4.42866708,193.53,193.44,2.74]
[1761343504713,2.35286469,193.54,193.44,2.74]
[1761343504917,6.78153177,193.54,193.44,2.74]
[1761343505125,2.35286469,193.54,193.44,2.74]
[1761343505416,6.78153177,193.54,193.44,2.74]
[1761343505616,2.35286469,193.54,193.44,2.74]
[1761343505817,2.35286469,193.54,193.45,2.74]
[1761343506417,4.42866708,193.55,193.45,2.74]
[1761343507019,4.42866708,193.55,193.46,2.74]
[1761343507212,6.78153177,193.55,193.46,2.74]
[1761343511726,6.78153177,193.55,193.47,2.77]
[1761343513223,6.78153177,193.55,193.36,2.77]
[1761343513430,6.78153177,193.55,193.41,2.77]
[1761343514925,6.78153177,193.55,193.42,4.6523]
[1761343515126,6.78153177,193.55,193.43,2.77]
[1761343515327,62.78,193.54,193.43,2.77]
[1761343515525,4.42866708,193.53,193.43,2.77]
[1761343516532,62.76,193.52,193.43,2.77]
[1761343519637,62.76,193.52,193.43,7.4219]
[1761343519832,62.76,193.52,193.44,2.77]
[1761343523140,65.11286469,193.52,193.44,2.77]
[1761343527148,4.43150151,193.51,193.44,2.77]
[1761343528547,65.11286469,193.52,193.44,2.77]
[1761343528749,4.43347638,193.51,193.44,2.77]
[1761343534649,4.43347638,193.56,193.44,2.77]
[1761343534854,4.43347638,193.58,193.49,2.77]
[1761343535046,4.43347638,193.57,193.49,2.77]
[1761343535247,4.43347638,193.56,193.49,2.77]
[1761343535553,4.43347638,193.55,193.49,2.77]
[1761343535849,7.15419108,193.59,193.46,2.35286469]
[1761343535850,2.35286469,193.53,193.46,2.77]
[1761343536042,4.43347638,193.52,193.46,2.77]
[1761343536453,4.43347638,193.51,193.46,2.77]
[1761343536643,4.43347638,193.52,193.46,2.77]
[1761343536847,4.43347638,193.51,193.46,2.77]
[1761343537044,4.43347638,193.52,193.46,2.77]
[1761343537256,4.43347638,193.51,193.46,2.77]
[1761343537456,4.43347638,193.52,193.46,2.77]
[1761343537643,4.43347638,193.51,193.46,2.77]
[1761343537847,4.43347638,193.52,193.46,2.77]
[1761343538048,4.43347638,193.51,193.46,2.77]
[1761343538248,4.43347638,193.52,193.46,2.77]
[1761343538450,4.43347638,193.51,193.46,2.77]
[1761343538650,4.43347638,193.53,193.46,2.77]
[1761343538951,4.43347638,193.52,193.46,2.77]
[1761343539259,4.43347638,193.51,193.46,2.77]
[1761343539455,4.43347638,193.5,193.46,2.77]
[1761343539659,4.43347638,193.53,193.46,2.77]
[1761343539957,4.43347638,193.52,193.46,2.77]
[1761343540152,4.43347638,193.51,193.46,2.77]
[1761343540353,2.35286469,193.54,193.46,2.77]
[1761343540354,4.43347638,193.5,193.46,2.77]
[1761343540555,4.43347638,193.49,193.46,2.77]
[1761343540754,4.43347638,193.53,193.46,2.77]
[1761343540955,4.43347638,193.52,193.46,2.77]
[1761343541152,4.43347638,193.51,193.46,2.77]
[1761343541358,4.43347638,193.5,193.46,2.77]
[1761343541553,4.43347638,193.49,193.46,2.77]
[1761343541754,4.43347638,193.53,193.46,2.77]
[1761343541958,2.35286469,193.51,193.43,86.98477783]
[1761343542264,4.43347638,193.5,193.43,86.98477783]
[1761343542463,2.35286469,193.48,193.43,84.30477783]
[1761343542761,2.35286469,193.45,193.43,84.30477783]
[1761343542950,4.43347638,193.44,193.43,84.30477783]
[1761343544666,4.43347638,193.44,193.43,86.98477783]
[1761343545761,4.43347638,193.49,193.43,86.98477783]
[1761343545956,4.43347638,193.48,193.44,2.68]
[1761343546155,4.43347638,193.47,193.44,2.68]
[1761343546360,7.15419108,193.5,193.44,2.68]
[1761343546361,4.43347638,193.46,193.44,2.68]
[1761343546556,4.43347638,193.45,193.44,2.68]
[1761343547966,4.43347638,193.45,193.43,84.30477783]
[1761343548167,4.43347638,193.44,193.43,86.98477783]
[1761343548366,2.35286469,193.5,193.43,86.98477783]
[1761343548367,4.43347638,193.49,193.43,86.98477783]
[1761343548561,4.43347638,193.48,193.43,86.98477783]
[1761343548764,4.43347638,193.47,193.43,86.98477783]
[1761343548954,4.43347638,193.46,193.43,86.98477783]
[1761343549155,4.43347638,193.45,193.43,86.98477783]
[1761343549360,4.43347638,193.44,193.43,86.98477783]
[1761343549558,4.43347638,193.49,193.43,86.98477783]
[1761343549762,4.43347638,193.48,193.43,86.98477783]
[1761343549961,4.43347638,193.47,193.43,86.98477783]
[1761343550261,4.43347638,193.46,193.43,86.98477783]
[1761343550462,4.43347638,193.45,193.43,86.98477783]
[1761343550663,4.43347638,193.44,193.43,86.98477783]
[1761343550870,4.43347638,193.49,193.43,86.98477783]
[1761343551071,4.43347638,193.48,193.43,86.98477783]
[1761343551273,4.43347638,193.47,193.43,86.98477783]
[1761343551463,4.43347638,193.46,193.43,86.98477783]
[1761343551664,4.43347638,193.45,193.44,2.68]
[1761343552973,4.43347638,193.45,193.43,86.98477783]
[1761343553176,4.43347638,193.44,193.43,86.98477783]
[1761343553473,4.43347638,193.49,193.43,86.98477783]
[1761343553675,4.43347638,193.48,193.43,86.98477783]
[1761343553878,4.43347638,193.47,193.43,86.98477783]
[1761343554068,4.43347638,193.46,193.43,86.98477783]
[1761343554266,4.43347638,193.45,193.43,86.98477783]
[1761343554466,4.43347638,193.44,193.43,86.98477783]
[1761343554671,4.43347638,193.49,193.43,86.98477783]
[1761343554871,4.43347638,193.48,193.43,86.98477783]
[1761343555071,4.43347638,193.47,193.43,86.98477783]
[1761343555274,4.43347638,193.46,193.43,86.98477783]
[1761343555571,4.43347638,193.45,193.43,86.98477783]
[1761343555871,4.43347638,193.44,193.43,86.98477783]
[1761343556067,4.43347638,193.49,193.43,86.98477783]
[1761343556267,4.43347638,193.48,193.43,86.98477783]
[1761343556476,4.43347638,193.47,193.43,86.98477783]
[1761343556775,4.43347638,193.46,193.43,86.98477783]
[1761343556975,4.43347638,193.45,193.43,86.98477783]
[1761343557176,4.43347638,193.44,193.43,86.98477783]
[1761343557371,4.43347638,193.48,193.43,86.98477783]
[1761343557570,4.43347638,193.47,193.43,86.98477783]
[1761343557771,4.43347638,193.46,193.43,86.98477783]
[1761343557971,4.43347638,193.45,193.43,86.98477783]
[1761343558171,4.43347638,193.44,193.43,86.98477783]
[1761343558373,4.43347638,193.48,193.43,86.98477783]
[1761343558581,4.43347638,193.47,193.44,2.79]
[1761343558776,4.43347638,193.46,193.44,2.79]
[1761343558978,4.43347638,193.45,193.44,2.79]
[1761343561082,4.43347638,193.45,193.43,84.30477783]
[1761343561277,4.43347638,193.44,193.4,2.79]
[1761343561481,4.43347638,193.43,193.37,2.79]
[1761343561682,5.93844688,193.42,193.35,1.5049705]
[1761343561978,4.43347638,193.41,193.35,1.5049705]
[1761343562176,4.43347638,193.4,193.36,2.79]
[1761343562376,4.43347638,193.39,193.36,2.79]
[1761343562577,4.43347638,193.38,193.36,2.79]
[1761343562778,4.43347638,193.41,193.36,2.79]
[1761343562975,4.43347638,193.4,193.36,2.79]
[1761343563178,4.43347638,193.39,193.36,2.79]
[1761343563385,4.43347638,193.38,193.32,1.5049705]
[1761343563686,4.43347638,193.41,193.33,2.79]
[1761343563889,4.43347638,193.4,193.33,2.79]
[1761343564190,4.43347638,193.39,193.33,2.79]
[1761343564489,4.43347638,193.41,193.33,2.79]
[1761343564681,4.43347638,193.4,193.33,2.79]
[1761343564881,4.43347638,193.39,193.34,1.5049705]
[1761343565079,4.43347638,193.42,193.37,2.79]
[1761343565286,4.43347638,193.41,193.37,2.79]
[1761343565588,4.43347638,193.44,193.37,2.79]
[1761343565789,4.43347638,193.43,193.37,2.79]
[1761343565987,4.43347638,193.42,193.37,2.79]
[1761343566186,4.43347638,193.44,193.37,2.79]
[1761343566387,4.43347638,193.43,193.37,2.79]
[1761343566582,4.43347638,193.42,193.36,1.5049705]
[1761343566787,4.43347638,193.44,193.36,1.5049705]
[1761343566988,5.93844688,193.43,193.36,1.5049705]
[1761343567192,4.43347638,193.42,193.36,1.5049705]
[1761343568092,4.43347638,193.42,193.34,2.79]
[1761343568285,4.43347638,193.42,193.29,67.49370909]
[1761343568286,4.43347638,193.42,193.35,1.5049705]
[1761343568492,4.43347638,193.41,193.35,1.5049705]
[1761343568692,1.5049705,193.41,193.34,2.67]